bitfinex/quotes_SOLUSD_20260309
["timestamp","ask_amount","ask_price","bid_price","bid_amount"]
[1773054414615,0.47175398,83.922,83.893,0.46242794]
[1773054415414,0.47175398,83.922,83.89,4.36506755]
[1773054415415,11.91596858,83.921,83.894,11.91980356]
[1773054415614,0.47175398,83.92,83.895,0.46242794]
[1773054415923,0.47175398,83.92,83.901,0.46242794]
[1773054417514,41.70688401,83.919,83.875,0.46242794]
[1773054417717,0.47175398,83.918,83.881,0.46242794]
[1773054418032,0.47175398,83.918,83.891,0.46242794]
[1773054419105,0.47175398,83.918,83.89,4.36506755]
[1773054419106,11.91653657,83.917,83.901,0.46242794]
[1773054419402,12.38765421,83.922,83.901,0.46242794]
[1773054419920,11.91556091,83.924,83.901,0.46242794]
[1773054420121,0.2,83.93,83.911,0.46242794]
[1773054420702,0.2,83.94,83.921,0.46242794]
[1773054420907,0.2,83.94,83.931,0.46242794]
[1773054421524,0.2,83.94,83.921,0.46242794]
[1773054422715,0.2,83.94,83.922,0.46242794]
[1773054425632,0.2,83.95,83.931,0.49287547]
[1773054425820,11.91199418,83.949,83.931,0.49287547]
[1773054426133,0.47917401,83.948,83.923,11.91568461]
[1773054426635,0.47917401,83.948,83.92,4.36506755]
[1773054427837,11.91227798,83.947,83.921,11.91596858]
[1773054428133,12.39145199,83.947,83.922,0.32060402]
[1773054428316,11.91227798,83.947,83.922,0.32060402]
[1773054428517,11.91227798,83.947,83.903,0.32060402]
[1773054428518,0.47917401,83.946,83.903,0.32060402]
[1773054428744,0.47917401,83.946,83.902,11.91866701]
[1773054428745,0.47917401,83.939,83.911,0.32060402]
[1773054429634,0.47917401,83.939,83.92,4.36506755]
[1773054429831,0.47917401,83.946,83.923,0.32060397]
[1773054430036,11.91227798,83.947,83.923,0.32060397]
[1773054430224,0.47917401,83.946,83.92,4.36506755]
[1773054430728,0.47917401,83.946,83.918,0.32060392]
[1773054431141,0.47917401,83.946,83.911,11.91738866]
[1773054431320,0.47917401,83.946,83.912,0.32060387]
[1773054431828,0.47917401,83.939,83.91,4.36506755]
[1773054433837,0.47917401,83.937,83.91,4.36506755]
[1773054434640,0.47917401,83.937,83.904,0.32060378]
[1773054434826,0.47917401,83.937,83.911,0.32060373]
[1773054435323,0.47917401,83.943,83.921,0.32060368]
[1773054435725,0.47917401,83.943,83.915,0.32060368]
[1773054436142,0.47917401,83.941,83.917,0.32060364]
[1773054436743,0.47917401,83.941,83.921,0.32060364]
[1773054438144,12.39244539,83.94,83.921,0.32060364]
[1773054438437,0.47917401,83.939,83.92,4.36506755]
[1773054441125,11.91355524,83.938,83.92,4.36506755]
[1773054441547,0.2,83.95,83.922,0.32060342]
[1773054441850,11.91199418,83.949,83.931,0.32060342]
[1773054442257,0.47917401,83.948,83.92,4.36506755]
[1773054442433,0.47917401,83.948,83.914,11.9169626]
[1773054442636,0.47917401,83.948,83.915,0.32060338]
[1773054445565,0.47917401,83.946,83.91,4.36506755]
[1773054445740,0.47917401,83.939,83.91,4.36506755]
[1773054445944,0.47917401,83.939,83.905,12.23883237]
[1773054446355,0.47917401,83.939,83.906,0.32060321]
[1773054446654,0.47917401,83.929,83.9,4.36506755]
[1773054446861,0.47917401,83.929,83.9,4.68567076]
[1773054447463,0.47917401,83.929,83.902,0.32060317]
[1773054447755,12.39414875,83.928,83.904,0.32060317]
[1773054447973,0.47917401,83.927,83.904,0.32060317]
[1773054448743,0.47917401,83.927,83.9,4.36506755]
[1773054448946,0.47917401,83.927,83.902,0.32060313]
[1773054449856,11.91525868,83.926,83.904,0.32060309]
[1773054451042,12.39471664,83.924,83.904,0.32060309]
[1773054451253,0.47917401,83.923,83.905,11.91824086]
[1773054451451,11.91554263,83.924,83.906,0.32060302]
[1773054454369,0.48741408,83.932,83.907,0.32060287]
[1773054454548,0.48741408,83.932,83.91,4.36506755]
[1773054454862,0.48741408,83.932,83.906,0.32060287]
[1773054455843,0.48741408,83.932,83.901,11.91880907]
[1773054456055,0.48741408,83.929,83.892,0.3206028]
[1773054456258,4.36506755,83.93,83.891,12.24083262]
[1773054456259,0.48741408,83.927,83.891,12.24083262]
[1773054456739,0.48741408,83.919,83.884,0.3206028]
[1773054457751,11.91639457,83.918,83.885,11.92108243]
[1773054457957,0.48741408,83.917,83.885,11.92108243]
[1773054458156,0.48741408,83.909,83.88,4.36506755]
[1773054458461,0.48741408,83.909,83.881,11.92165091]
[1773054459062,0.48741408,83.909,83.88,4.36506755]
[1773054459268,0.48741408,83.909,83.876,11.9223437]
[1773054459468,0.48741408,83.909,83.877,0.32060269]
[1773054460283,0.48741408,83.907,83.88,4.36506755]
[1773054461563,0.48741408,83.905,83.88,4.36640028]
[1773054461765,0.48741408,83.905,83.881,12.24225353]
[1773054461964,0.48741408,83.905,83.882,0.32060262]
[1773054462583,0.48741408,83.939,83.901,0.32060259]
[1773054462877,0.48741408,83.938,83.911,0.32060259]
[1773054463583,0.48741408,83.938,83.916,0.32060256]
[1773054464086,0.48741408,83.936,83.91,4.36640028]
[1773054465984,0.47345439,83.934,83.91,4.36640028]
[1773054466484,0.47345439,83.934,83.91,16.28386746]
[1773054466677,0.47345439,83.934,83.911,0.32060243]
[1773054467988,0.47345439,83.94,83.913,0.3206024]
[1773054468691,0.47345439,83.939,83.91,4.36640028]
[1773054470206,0.47345439,83.937,83.91,4.36640028]
[1773054470407,0.47345439,83.937,83.903,11.91843021]
[1773054470696,0.47345439,83.937,83.903,0.32060231]
[1773054470875,0.47345439,83.929,83.9,4.36640028]
[1773054471495,0.47345439,83.929,83.901,0.32060228]
[1773054471793,0.47345439,83.919,83.89,4.36640028]
[1773054472375,0.47345439,83.917,83.891,0.32060225]
[1773054473792,0.47345439,83.917,83.89,4.36640028]
[1773054474893,0.47345439,83.915,83.89,4.36640028]
[1773054475902,0.47345439,83.915,83.888,11.92064141]
[1773054476093,0.47345439,83.915,83.884,12.24173067]
[1773054476293,0.47345439,83.915,83.89,4.36640028]
[1773054477699,0.47345439,83.913,83.89,4.36640028]
[1773054478794,0.47345439,83.911,83.89,4.36640028]
[1773054479380,0.47345439,83.911,83.885,0.32060213]
[1773054479705,0.47345439,83.911,83.887,0.32060205]
[1773054481307,0.47345439,83.909,83.887,0.32060205]
[1773054481779,0.47345439,83.909,83.882,11.92143166]
[1773054482183,0.47345439,83.909,83.882,12.24203363]
[1773054482407,0.47345439,83.909,83.88,4.36640028]
[1773054482606,0.47345439,83.909,83.871,0.32060197]
[1773054483406,0.49661369,83.907,83.88,4.36640028]
[1773054483886,0.49661369,83.907,83.88,4.6870022]
[1773054484605,0.49661369,83.905,83.881,0.3206019]
[1773054485534,0.49661369,83.921,83.9,4.68700215]
[1773054486795,0.49661369,83.921,83.9,0.32060187]
[1773054486796,11.91611058,83.92,83.9,0.32060187]
[1773054487206,0.49661369,83.919,83.9,0.32060187]
[1773054488208,0.49661369,83.919,83.901,11.91880907]
[1773054489411,11.91639457,83.918,83.9,0.32060187]
[1773054494829,0.49661369,83.925,83.9,0.32060187]
[1773054496032,0.49661369,83.919,83.9,0.32060187]
[1773054496412,0.49661369,83.919,83.892,0.32060162]
[1773054497430,4.36640028,83.93,83.881,0.32060159]
[1773054497431,0.49661369,83.909,83.881,0.32060159]
[1773054498016,0.49661369,83.909,83.863,29.81023819]
[1773054498017,0.49661369,83.909,83.874,0.32060159]
[1773054498216,0.49661369,83.909,83.88,4.36640028]
[1773054499846,0.49661369,83.907,83.88,4.36640028]
[1773054500016,0.49661369,83.907,83.875,11.92250372]
[1773054500419,0.49661369,83.907,83.876,0.32060153]
[1773054501519,0.49661369,83.905,83.88,4.36640028]
[1773054502737,0.49661369,83.905,83.877,11.92221944]
[1773054502925,0.49661369,83.905,83.877,12.24282093]
[1773054503237,0.49661369,83.905,83.881,0.32060147]
[1773054503433,11.91625257,83.919,83.891,11.92022982]
[1773054503637,0.49661369,83.918,83.891,11.92022982]
[1773054503835,0.49661369,83.918,83.892,0.32060147]
[1773054504336,4.82477569,83.965,83.891,11.92022982]
[1773054504337,0.49661369,83.939,83.91,4.68700173]
[1773054505040,0.49661369,83.939,83.911,0.32060143]
[1773054505239,0.49661369,83.938,83.911,12.23798439]
[1773054505440,0.49661369,83.938,83.911,0.32060143]
[1773054505823,0.49661369,83.938,83.901,0.32060143]
[1773054506637,0.49661369,83.938,83.9,4.36640028]
[1773054506638,0.49661369,83.936,83.91,4.68700169]
[1773054507224,0.49661369,83.936,83.91,0.32060141]
[1773054508636,0.49661369,83.934,83.91,16.28380396]
[1773054509038,0.49661369,83.934,83.911,0.32060137]
[1773054510050,0.49661369,83.941,83.913,0.32060133]
[1773054511026,0.49661369,83.939,83.915,0.32060131]
[1773054512241,11.91355524,83.938,83.92,4.36640028]
[1773054512940,11.91309135,83.942,83.921,0.3206013]
[1773054513547,0.46707763,83.941,83.911,0.32060126]
[1773054513948,0.46707763,83.939,83.91,4.36640028]
[1773054514649,0.46707763,83.937,83.91,4.36640028]
[1773054515022,0.46707763,83.937,83.907,11.91785782]
[1773054515225,0.46707763,83.937,83.905,0.32060124]
[1773054516651,0.46707763,83.937,83.906,11.91809882]
[1773054517455,0.46707763,83.935,83.906,11.91809882]
[1773054517634,0.46707763,83.935,83.9,4.68700147]
[1773054517836,0.46707763,83.919,83.89,4.36640028]
[1773054518047,0.46707763,83.919,83.884,0.32060119]
[1773054518449,41.69843689,83.936,83.884,0.32060119]
[1773054518450,0.46707763,83.909,83.884,0.32060119]
[1773054519253,0.46707763,83.909,83.872,0.32060116]
[1773054519468,0.46707763,83.907,83.874,0.32060116]
[1773054520847,0.46707763,83.905,83.876,0.32060114]
[1773054521660,0.46707763,83.905,83.875,11.92250372]
[1773054521661,0.46707763,83.905,83.858,0.32060112]
[1773054521864,0.46707763,83.905,83.853,11.92563176]
[1773054521865,0.46707763,83.889,83.854,0.32060112]
[1773054522842,0.46707763,83.887,83.856,0.32060111]
[1773054523563,0.46707763,83.887,83.86,4.3687438]
[1773054524538,0.46707763,83.879,83.851,11.92584405]
[1773054524943,0.46707763,83.879,83.852,0.32060108]
[1773054525654,0.46707763,83.879,83.853,11.92563176]
[1773054525858,0.46707763,83.879,83.854,0.32060106]
[1773054527750,0.46707763,83.879,83.855,11.92534732]
[1773054527963,0.46707763,83.879,83.856,0.32060102]
[1773054529963,0.46707763,83.879,83.858,0.32060099]
[1773054531366,0.45447419,83.911,83.861,0.32060096]
[1773054531672,0.45447419,83.911,83.859,11.92477849]
[1773054531673,4.3687438,83.94,83.901,0.46477313]
[1773054532157,4.3687438,83.94,83.91,4.3687438]
[1773054532661,4.3687438,83.93,83.908,0.46477313]
[1773054533347,11.91483277,83.929,83.908,0.46477313]
[1773054533552,0.45447419,83.928,83.908,0.46477313]
[1773054535262,12.36959089,83.927,83.908,0.46477313]
[1773054535571,0.45447419,83.926,83.908,0.46477313]
[1773054536254,0.45447419,83.926,83.902,12.3834393]
[1773054537074,0.45447419,83.926,83.902,11.91866617]
[1773054537474,0.45447419,83.924,83.902,12.3834393]
[1773054537673,0.45447419,83.924,83.902,0.46477313]
[1773054537970,0.45447419,83.924,83.901,0.46477313]
[1773054538877,0.45447419,83.922,83.901,0.46477313]
[1773054539261,0.45447419,83.922,83.89,4.3687438]
[1773054539469,0.45447419,83.919,83.89,4.3687438]
[1773054539775,0.45447419,83.919,83.891,0.46477313]
[1773054540768,0.45447419,83.907,83.885,0.46477313]
[1773054540969,0.45447419,83.907,83.886,0.46477313]
[1773054542773,11.91809882,83.906,83.886,0.46477313]
[1773054542985,12.37257301,83.906,83.886,0.46477313]
[1773054543179,0.45447419,83.906,83.888,0.46481511]
[1773054543569,11.91765237,83.91,83.888,0.46481511]
[1773054543782,0.48192368,83.909,83.888,0.46481511]
[1773054544784,0.48192368,83.928,83.893,0.46481511]
[1773054544974,0.48192368,83.924,83.893,0.46481511]
[1773054545174,0.48192368,83.919,83.893,0.46481511]
[1773054547290,11.91639457,83.918,83.895,0.46481511]
[1773054547679,11.91639457,83.918,83.901,0.46481511]
[1773054551103,11.91540065,83.925,83.903,0.46481511]
[1773054553003,11.91540065,83.925,83.894,29.79916131]
[1773054553004,11.914123,83.934,83.911,0.46481511]
[1773054553224,0.48192368,83.933,83.911,0.46481511]
[1773054554206,0.48192368,83.933,83.882,0.14216157]
[1773054554207,0.48192368,83.929,83.896,0.46481511]
[1773054554731,0.48192368,83.929,83.901,0.46481511]
[1773054559708,0.48192368,83.927,83.901,0.46481511]
[1773054560531,0.48192368,83.927,83.903,0.46481511]
[1773054563034,0.48192368,83.925,83.9,4.3687438]
[1773054563333,0.48192368,83.925,83.901,0.46481511]
[1773054565833,0.48192368,83.923,83.901,0.46481511]
[1773054566032,12.39746631,83.924,83.902,0.46481511]
[1773054566340,0.48192368,83.923,83.902,0.46481511]
[1773054571525,0.48192368,83.923,83.9,4.3687438]
[1773054571526,0.48192368,83.921,83.9,4.3687438]
[1773054571713,0.48192368,83.921,83.901,0.46481511]
[1773054573934,11.91611058,83.92,83.902,0.45897074]
[1773054574117,12.39091515,83.92,83.902,0.45897074]
[1773054575436,0.47480457,83.925,83.902,0.45897074]
[1773054577022,11.91483277,83.929,83.904,0.45897074]
[1773054577840,11.91483277,83.929,83.903,11.91852496]
[1773054577841,0.47480457,83.929,83.906,0.45897074]
[1773054578817,0.47480457,83.929,83.901,12.37768299]
[1773054579017,0.47480457,83.929,83.902,0.45897074]
[1773054579839,41.70241159,83.928,83.895,0.45897074]
[1773054580040,0.47480457,83.919,83.882,0.45897074]
[1773054580348,0.47480457,83.919,83.89,4.82771454]
[1773054580923,0.47480457,83.919,83.884,0.45897074]
[1773054581228,41.70688401,83.919,83.886,0.45897074]
[1773054582030,41.70688401,83.919,83.891,0.45897074]
[1773054583147,0.47480457,83.918,83.891,0.45897074]
[1773054585244,0.47480457,83.909,83.881,0.45897074]
[1773054588551,0.47480457,83.909,83.87,4.36561677]
[1773054588552,0.49425947,83.899,83.871,0.48833566]
[1773054589733,0.49425947,83.899,83.872,0.48833566]
[1773054591341,0.49425947,83.907,83.874,0.48833566]
[1773054592845,0.49425947,83.905,83.876,0.48833566]
[1773054596443,0.49425947,83.899,83.876,0.48833566]
[1773054596647,0.49425947,83.899,83.861,0.48833566]
[1773054597964,0.49425947,83.897,83.862,0.48833566]
[1773054598946,0.49425947,83.897,83.864,0.48833566]
[1773054601152,0.49425947,83.889,83.864,0.48833566]
[1773054601357,41.71831791,83.896,83.859,0.48833566]
[1773054601358,0.49425947,83.879,83.859,0.48833566]
[1773054602238,0.49425947,83.879,83.853,0.48833566]
[1773054602865,12.41633677,83.878,83.853,0.48833566]
[1773054603361,0.45342543,83.869,83.841,0.49290895]
[1773054604670,0.45342543,83.859,83.831,0.49290895]
[1773054604871,11.92486462,83.859,83.833,0.49290895]
[1773054605161,11.92414611,83.864,83.833,0.49290895]
[1773054605540,12.37757154,83.864,83.833,0.49290895]
[1773054605741,29.80519325,83.878,83.841,0.49290895]
[1773054605742,0.45342543,83.877,83.841,0.49290895]
[1773054605943,0.45342543,83.876,83.841,0.49290895]
[1773054606164,4.36561677,83.87,83.841,0.49290895]
[1773054608066,4.36561677,83.87,83.843,0.49290895]
[1773054608067,11.92335666,83.869,83.843,0.49290895]
[1773054611564,0.45342543,83.869,83.843,0.49290895]
[1773054614464,0.45342543,83.867,83.843,0.49290895]
[1773054616471,0.45342543,83.867,83.845,0.49290895]
[1773054618574,11.92349883,83.868,83.845,0.49290895]
[1773054619370,0.45342543,83.869,83.847,0.49290895]
[1773054619551,29.79887528,83.896,83.861,0.49290895]
[1773054619871,11.91937733,83.897,83.871,0.49290895]
[1773054620250,0.45342543,83.889,83.85,4.36561677]
[1773054621267,41.71782065,83.897,83.85,4.36561677]
[1773054621268,0.45342543,83.879,83.85,4.36561677]
[1773054621476,0.45342543,83.879,83.851,11.9259162]
[1773054621477,11.9220773,83.878,83.851,11.9259162]
[1773054622278,11.9220773,83.878,83.852,0.49290895]
[1773054622882,11.9220773,83.878,83.853,11.92563176]
[1773054623074,11.9220773,83.878,83.854,0.49290895]
[1773054625672,0.45342543,83.879,83.856,0.49290895]
[1773054626170,0.45342543,83.879,83.845,11.92664073]
[1773054626352,0.45342543,83.879,83.85,4.36561677]
[1773054627258,0.45342543,83.877,83.84,4.36561677]
[1773054627661,0.45342543,83.869,83.83,4.36561677]
[1773054627863,0.45342543,83.869,83.831,0.28432314]
[1773054628469,0.45342543,83.869,83.832,0.49290895]
[1773054628864,0.45342543,83.867,83.834,0.49290895]
[1773054631969,0.45342543,83.865,83.836,0.49290895]
[1773054632776,0.45342543,83.865,83.841,0.49290895]
[1773054634781,11.92406753,83.864,83.841,12.42012744]
[1773054634985,0.47912917,83.863,83.842,0.4558901]
[1773054638082,0.47912917,83.866,83.844,0.4558901]
[1773054638383,11.92335666,83.869,83.844,0.4558901]
[1773054638770,0.47912917,83.868,83.844,0.4558901]
[1773054640889,0.47912917,83.866,83.845,11.92676963]
[1773054641085,0.47912917,83.866,83.846,0.4558901]
[1773054642592,0.47912917,83.866,83.836,0.4558901]
[1773054643284,0.47912917,83.864,83.837,0.4558901]
[1773054645590,11.92420972,83.863,83.837,0.4558901]
[1773054645781,0.47875385,83.862,83.837,0.4558901]
[1773054646090,0.47875385,83.862,83.838,11.92776545]
[1773054646282,0.47875385,83.862,83.839,0.45140623]
[1773054646675,11.92420972,83.863,83.841,0.45140623]
[1773054647292,67.42113677,83.886,83.851,0.45140623]
[1773054647293,12.40167874,83.873,83.851,0.45140623]
[1773054647473,11.92292489,83.873,83.851,0.45140623]
[1773054647879,12.40097329,83.877,83.853,0.45140623]
[1773054648192,0.47875385,83.876,83.853,0.45140623]
[1773054651500,0.47875385,83.869,83.84,4.37084484]
[1773054651793,0.47875385,83.869,83.836,12.37945623]
[1773054652602,0.47875385,83.869,83.836,0.45140623]
[1773054652782,0.47875385,83.869,83.81,0.2]
[1773054652783,0.47875385,83.849,83.821,0.45140623]
[1773054653489,0.47875385,83.847,83.823,0.45140623]
[1773054654478,0.47875385,83.845,83.823,0.45140623]
[1773054654791,0.47875385,83.845,83.825,0.45140623]
[1773054655677,0.47875385,83.85,83.825,0.45140623]
[1773054656002,0.47875385,83.848,83.825,0.45140623]
[1773054656597,11.92514519,83.857,83.832,0.45140623]
[1773054656806,0.47875385,83.865,83.841,0.45140623]
[1773054658800,11.92406753,83.864,83.841,0.45140623]
[1773054659301,12.40282138,83.864,83.841,0.45140623]
[1773054659500,0.47875385,83.863,83.841,0.45140623]
[1773054660103,0.47875385,83.863,83.843,0.45140623]
[1773054660602,11.92406753,83.864,83.843,0.45140623]
[1773054661002,0.47875385,83.867,83.845,0.45140623]
[1773054661604,0.47875385,83.867,83.841,0.45140623]
[1773054661799,0.47875385,83.849,83.821,12.38159078]
[1773054662109,0.47875385,83.849,83.822,0.45140623]
[1773054662908,0.47875385,83.847,83.823,11.9298999]
[1773054663105,0.47875385,83.847,83.822,0.45140623]
[1773054663282,11.9263429,83.848,83.82,0.2]
[1773054663283,0.49156175,83.839,83.82,0.2]
[1773054664315,0.49156175,83.839,83.821,0.45991651]
[1773054664499,0.49156175,83.839,83.82,12.13028533]
[1773054664701,0.49156175,83.839,83.82,0.2]
[1773054664898,0.49156175,83.837,83.82,0.2]
[1773054667316,0.49156175,83.835,83.82,0.2]
[1773054667508,4.37084484,83.83,83.81,0.2]
[1773054667704,0.49156175,83.829,83.81,0.2]
[1773054668617,0.49156175,83.827,83.81,0.2]
[1773054669515,0.49156175,83.827,83.8,0.2]
[1773054669721,0.49156175,83.819,83.8,0.2]
[1773054670598,11.93061156,83.818,83.8,0.2]
[1773054670819,0.49156175,83.817,83.8,0.2]
[1773054673099,0.49156175,83.815,83.8,0.2]
[1773054674521,0.49156175,83.813,83.8,0.2]
[1773054675822,34.19671338,83.82,83.8,0.2]
[1773054675823,0.49156175,83.811,83.8,0.2]
[1773054676322,4.37084484,83.81,83.787,0.45991651]
[1773054676527,0.49156175,83.809,83.783,11.93550621]
[1773054677106,0.49156175,83.799,83.78,0.2]
[1773054678104,0.49156175,83.797,83.78,0.2]
[1773054678306,0.49156175,83.818,83.791,0.45991651]
[1773054678524,0.49156175,83.828,83.801,0.45991651]
[1773054678727,0.49156175,83.838,83.811,0.45991651]
[1773054679827,11.92790772,83.837,83.813,0.45991651]
[1773054680418,0.49156175,83.836,83.813,0.45991651]
[1773054684717,11.92819228,83.835,83.813,0.45991651]
[1773054684928,12.41975403,83.835,83.813,0.45991651]
[1773054685431,0.49156175,83.834,83.813,0.45991651]
[1773054686013,0.49156175,83.848,83.821,0.45991651]
[1773054687734,0.49156175,83.848,83.815,0.45991651]
[1773054690827,11.92648514,83.847,83.815,0.45991651]
[1773054691032,0.49156175,83.846,83.815,0.45991651]
[1773054691832,0.49156175,83.846,83.821,0.45991651]
[1773054692215,0.49156175,83.853,83.831,0.45991651]
[1773054693032,0.49156175,83.851,83.826,11.92940178]
[1773054693228,0.49156175,83.851,83.83,4.37084484]
[1773054693837,0.49156175,83.851,83.831,0.47472676]
[1773054694040,0.49156175,83.851,83.83,4.37084484]
[1773054694221,0.49156175,83.851,83.827,0.47472676]
[1773054694417,0.49156175,83.851,83.826,12.40412854]
[1773054694611,0.49156175,83.851,83.827,0.47472676]
[1773054695118,0.4716447,83.849,83.827,0.47472676]
[1773054695332,0.4716447,83.849,83.816,29.82724062]
[1773054695533,0.4716447,83.839,83.806,0.47472676]
[1773054696317,0.4716447,83.839,83.81,4.8455716]
[1773054696725,0.4716447,83.839,83.81,0.47472676]
[1773054700234,0.4716447,83.837,83.811,0.47472676]
[1773054702444,0.4716447,83.837,83.81,4.37084484]
[1773054702445,0.4716447,83.829,83.793,0.47472676]
[1773054702734,0.4716447,83.829,83.801,0.47472676]
[1773054705728,0.4716447,83.827,83.801,0.47472676]
[1773054707137,0.4716447,83.827,83.803,0.47645251]
[1773054708042,0.46715236,83.832,83.805,0.47645251]
[1773054710035,0.46715236,83.83,83.805,0.47645251]
[1773054716738,0.46715236,83.828,83.807,0.47645251]
[1773054718858,0.46715236,83.826,83.8,0.47645251]
[1773054719559,0.46715236,83.826,83.801,0.47645251]
[1773054720447,11.92933064,83.827,83.801,0.47645251]
[1773054721356,11.92933064,83.827,83.803,0.47645251]
[1773054721357,0.46715236,83.827,83.803,0.47645251]
[1773054722454,0.46715236,83.819,83.791,0.47645251]
[1773054722761,0.46715236,83.819,83.792,0.47645251]
[1773054723455,0.48107431,83.83,83.801,0.46642112]
[1773054723655,0.48107431,83.839,83.811,0.46642112]
[1773054723964,67.2349444,83.854,83.793,41.76959889]
[1773054723965,1e-08,83.854,83.831,0.46642112]
[1773054724256,1e-08,83.854,83.841,0.46642112]
[1773054726164,0.48107431,83.88,83.841,0.46642112]
[1773054726365,0.48107431,83.88,83.851,0.46642112]
[1773054726548,4.37464287,83.89,83.831,41.75066502]
[1773054726549,11.92018359,83.892,83.861,0.46642112]
[1773054726744,0.48107431,83.886,83.861,0.46642112]
[1773054727444,0.48107431,83.886,83.862,11.92435191]
[1773054727765,0.48107431,83.886,83.863,0.46642112]
[1773054730661,0.48107431,83.886,83.864,11.92406753]
[1773054730964,0.48107431,83.884,83.865,0.46642112]
[1773054733678,0.48107431,83.889,83.867,0.46642112]
[1773054734086,0.48107431,83.889,83.863,0.46642112]
[1773054734374,0.48107431,83.889,83.864,0.46642112]
[1773054736169,0.48107431,83.887,83.864,0.46642112]
[1773054736362,0.48107431,83.887,83.866,0.46642112]
[1773054736562,3.69383402,83.911,83.881,0.46642112]
[1773054736563,11.91956127,83.896,83.881,0.46642112]
[1773054738258,11.91956127,83.896,83.87,4.37464287]
[1773054738259,0.48107431,83.896,83.871,0.46642112]
[1773054740250,11.91966148,83.895,83.864,12.39043265]
[1773054740455,0.48107431,83.894,83.864,12.39043265]
[1773054740675,0.48107431,83.894,83.865,0.46642112]
[1773054741474,0.48107431,83.889,83.86,4.37464287]
[1773054742470,0.48107431,83.887,83.86,4.37464287]
[1773054742671,0.48107431,83.887,83.86,4.84106399]
[1773054743162,0.48107431,83.887,83.86,0.46642112]
[1773054744382,11.92094032,83.886,83.86,4.81106399]
[1773054744674,0.48107431,83.885,83.86,4.81106399]
[1773054745480,0.48107431,83.885,83.86,0.43642112]
[1773054745702,0.48107431,83.885,83.861,11.9244941]
[1773054746861,0.48107431,83.883,83.86,0.46642112]
[1773054747063,0.48107431,83.883,83.86,4.84106399]
[1773054748869,0.48107431,83.881,83.861,0.46642112]
[1773054749973,0.48107431,83.879,83.844,0.46642112]
[1773054750290,0.48107431,83.879,83.846,0.46642112]
[1773054751567,0.48107431,83.877,83.85,4.37464287]
[1773054752983,0.48107431,83.877,83.851,0.49112752]
[1773054753888,41.72727055,83.878,83.85,4.37464287]
[1773054753889,0.47171762,83.875,83.85,4.37464287]
[1773054754078,0.47171762,83.869,83.837,0.49112752]
[1773054756185,0.47171762,83.867,83.841,0.49112752]
[1773054757071,11.92349883,83.868,83.841,0.49112752]
[1773054757482,12.39521645,83.868,83.841,0.49112752]
[1773054757687,0.47171762,83.867,83.841,0.49112752]
[1773054758088,0.1,83.92,83.841,0.49112752]
[1773054758286,4.37464287,83.88,83.85,4.37464287]
[1773054758487,0.47171762,83.879,83.851,0.49112752]
[1773054758789,0.47171762,83.879,83.85,4.37464287]
[1773054759287,0.47171762,83.879,83.845,0.49112752]
[1773054759795,0.47171762,83.877,83.847,0.49112752]
[1773054761891,11.92236158,83.876,83.847,0.49112752]
[1773054762196,0.47171762,83.875,83.848,12.41747042]
[1773054762390,0.47171762,83.875,83.849,0.49112752]
[1773054764002,0.46918837,83.873,83.849,0.49112752]
[1773054765189,0.46918837,83.877,83.85,4.37464287]
[1773054765599,0.46918837,83.877,83.851,0.49919603]
[1773054766198,0.46918837,83.875,83.852,0.49919603]
[1773054770408,0.46918837,83.873,83.848,0.49919603]
[1773054770990,0.46918837,83.891,83.851,0.49919603]
[1773054771303,0.46918837,83.889,83.851,0.49919603]
[1773054771484,0.46918837,83.879,83.851,0.49919603]
[1773054771983,0.46918837,83.869,83.843,0.49919603]
[1773054772192,0.46918837,83.869,83.832,0.49919603]
[1773054773111,0.46918837,83.867,83.834,0.49919603]
[1773054773411,0.46918837,83.867,83.814,0.28432314]
[1773054773412,0.46918837,83.839,83.8,4.86834504]
[1773054773704,0.46918837,83.839,83.81,4.36914901]
[1773054774003,0.46918837,83.849,83.81,4.36914901]
[1773054774308,0.46918837,83.849,83.811,0.49919603]
[1773054774799,0.46918837,83.847,83.813,0.49919603]
[1773054778909,0.46918837,83.845,83.815,0.49919603]
[1773054779210,0.46918837,83.845,83.821,0.49919603]
[1773054781018,11.92662738,83.846,83.811,0.49919603]
[1773054781019,0.46918837,83.837,83.811,0.49919603]
[1773054782709,0.46918837,83.829,83.802,0.49919603]
[1773054784818,0.480649,83.827,83.802,0.49919603]
[1773054785311,0.480649,83.827,83.804,0.45318471]
[1773054787909,11.92947295,83.826,83.805,11.93246226]
[1773054788193,12.41012195,83.826,83.806,0.45318471]
[1773054788392,0.480649,83.825,83.806,0.45318471]
[1773054788592,0.480649,83.819,83.793,0.45318471]
[1773054789619,11.93061054,83.819,83.794,11.93402868]
[1773054789800,0.480649,83.818,83.795,0.45318471]
[1773054792120,0.480649,83.818,83.796,11.93374385]
[1773054792313,0.480649,83.818,83.797,0.45318471]
[1773054792824,0.480649,83.816,83.797,0.45318471]
[1773054793416,0.480649,83.816,83.783,0.45318471]
[1773054794819,0.480649,83.816,83.785,0.45318471]
[1773054795025,0.480649,83.816,83.784,41.77408573]
[1773054795026,0.480649,83.816,83.791,0.45318471]
[1773054796924,0.480649,83.816,83.793,0.45318471]
[1773054801426,0.480649,83.816,83.795,0.45318471]